[Event "German Championship Women 2022"]
[Site "Magdeburg"]
[Date "2022.08.16"]
[Round "4.9"]
[White "Halas, Julia"]
[Black "Mekus, Manuela"]
[Result "1-0"]
[ECO "E90"]
[WhiteElo "2012"]
[BlackElo "1638"]
[Annotator "NA RC"]
[PlyCount "67"]
[EventDate "2022.08.14"]
[EventType "swiss"]
[EventCountry "GER"]
[SourceTitle "playchess.com"]
[Source "ChessBase"]
[SourceQuality "1"]
[TimeControl "40/5400+30:1800+30"]

1. d4 {[%emt 0:00:02]} Nf6 {[%emt 0:00:12]} 2. c4 {[%emt 0:00:06]} g6 {[%emt 0:00:06]} 3. Nc3 {[%emt 0:00:05]} Bg7 {[%emt 0:00:12]} 4. e4 {[%emt 0:00:05]} d6 {[%emt 0:00:23]} 5. Nf3 {[%emt 0:00:06]} Nbd7 {[%emt 0:00:14]} 6. Be2 {[%emt 0:00:16]} O-O {[%emt 0:00:36]} 7. Be3 {[%emt 0:00:27]} e5 {[%emt 0:00:18]} 8. O-O {[%emt 0:00:33]} Qe7 {[%emt 0:01:12]} 9. d5 {[%emt 0:23:44]} c5 {[%emt 0:02:47]} 10. Qc2 {[%emt 0:09:12]} h6 {[%emt 0:04:20]} 11. a3 {[%emt 0:04:58]} b6 {[%emt 0:07:47]} 12. b4 {[%emt 0:01:15]} a6 {[%emt 0:02:44]} 13. Rab1 {[%emt 0:02:42]} Rb8 {[%emt 0:17:55]} 14. Nd2 {[%emt 0:11:18]} Ng4 {[%emt 0:00:31]} 15. Bxg4 {[%emt 0:00:21]} f5 {[%emt 0:00:35]} 16. exf5 {[%emt 0:01:06]} Nf6 {[%emt 0:00:17]} 17. Be2 {[%emt 0:03:21]} Bxf5 {[%emt 0:00:10]} 18. Nde4 {[%emt 0:02:39]} Nxe4 {[%emt 0:00:38]} 19. Nxe4 {[%emt 0:00:08]} Qh4 {[%emt 0:01:08]} 20. f3 {[%emt 0:02:59]} Qe7 {[%emt 0:05:50]} 21. Bd3 {[%emt 0:01:10]} h5 {[%emt 0:08:49]} 22. Bg5 {[%emt 0:09:43]} Qd7 {[%emt 0:01:42]} 23. Ng3 {[%emt 0:01:56]} Bxd3 {[%emt 0:01:46]} 24. Qxd3 {[%emt 0:00:07]} Qf7 {[%emt 0:00:36]} 25. Ne4 {[%emt 0:00:52]} Qf5 {[%emt 0:02:03]} 26. Be7 {[%emt 0:00:50]} Rf7 {[%emt 0:00:57]} 27. Bxd6 {[%emt 0:00:39]} Rd8 {[%emt 0:00:30]} 28. bxc5 {[%emt 0:00:21]} bxc5 {[%emt 0:00:25]} 29. Bxc5 {[%emt 0:00:14]} h4 {[%emt 0:00:24]} 30. Rb3 {[%emt 0:04:54]} Bf8 {[%emt 0:00:56]} 31. Bxf8 {[%emt 0:01:11]} Rfxf8 {[%emt 0:00:24]} 32. Nc5 {[%emt 0:01:39]} Qxd3 {[%emt 0:00:56]} 33. Nxd3 {[%emt 0:00:13]} Rde8 {[%emt 0:00:25]} 34. Re1 {[%emt 0:01:09]} 1-0

[Event "German Championship Women 2022"]
[Site "Magdeburg"]
[Date "2022.08.16"]
[Round "4.11"]
[White "Perez Celis, Alba"]
[Black "Peglau, Dora"]
[Result "0-1"]
[ECO "B13"]
[WhiteElo "1816"]
[BlackElo "1920"]
[Annotator "NA RC"]
[PlyCount "52"]
[EventDate "2022.08.14"]
[EventType "swiss"]
[EventCountry "GER"]
[SourceTitle "playchess.com"]
[Source "ChessBase"]
[SourceQuality "1"]
[TimeControl "40/5400+30:1800+30"]

1. e4 {[%emt 0:00:03]} c6 {[%emt 0:00:03]} 2. d4 {[%emt 0:00:05]} d5 {[%emt 0:00:04]} 3. exd5 {[%emt 0:00:09]} cxd5 {[%emt 0:00:05]} 4. Bd3 {[%emt 0:00:08]} Nf6 {[%emt 0:00:16]} 5. c3 {[%emt 0:00:28]} Nc6 {[%emt 0:00:45]} 6. Bf4 {[%emt 0:00:51]} Bg4 {[%emt 0:00:11]} 7. Qb3 {[%emt 0:00:21]} Qd7 {[%emt 0:01:01]} 8. Nd2 {[%emt 0:00:40]} e6 {[%emt 0:01:32]} 9. Ngf3 {[%emt 0:00:16]} Bd6 {[%emt 0:01:13]} 10. Bg5 {[%emt 0:08:32]} Bh5 {[%emt 0:02:57]} 11. O-O {[%emt 0:09:08]} Bg6 {[%emt 0:01:16]} 12. Bb5 {[%emt 0:01:47]} O-O {[%emt 0:05:58]} 13. Bxf6 {[%emt 0:02:24]} gxf6 {[%emt 0:00:07]} 14. Nh4 {[%emt 0:18:02]} a6 {[%emt 0:02:18]} 15. Nxg6 {[%emt 0:02:22]} hxg6 {[%emt 0:00:12]} 16. Bd3 {[%emt 0:00:30]} b5 {[%emt 0:00:56]} 17. Rae1 {[%emt 0:06:25]} b4 {[%emt 0:01:20]} 18. Qd1 {[%emt 0:03:16]} bxc3 {[%emt 0:06:49]} 19. bxc3 {[%emt 0:00:11]} Kg7 {[%emt 0:02:41]} 20. f4 {[%emt 0:01:55]} Qc7 {[%emt 0:04:07]} 21. Qg4 {[%emt 0:01:12]} Rh8 {[%emt 0:04:26]} 22. Rxe6 {[%emt 0:17:19]} Qd7 {[%emt 0:24:22]} 23. Bf5 {[%emt 0:01:49]} Ne7 {[%emt 0:00:24]} 24. Rxf6 {[%emt 0:03:18]} Nxf5 {[%emt 0:00:15]} 25. Rxd6 {[%emt 0:04:27]} Qxd6 {[%emt 0:00:15]} 26. Qf3 {[%emt 0:03:35]} Qe6 0-1

[Event "German Championship Women 2022"]
[Site "Magdeburg"]
[Date "2022.08.16"]
[Round "4.12"]
[White "Petersen, Sophie"]
[Black "Peglau, Sarah"]
[Result "1-0"]
[ECO "B13"]
[WhiteElo "1597"]
[BlackElo "1782"]
[Annotator "NA RC"]
[PlyCount "55"]
[EventDate "2022.08.14"]
[EventType "swiss"]
[EventCountry "GER"]
[SourceTitle "playchess.com"]
[Source "ChessBase"]
[SourceQuality "1"]
[TimeControl "40/5400+30:1800+30"]

1. e4 {[%emt 0:00:01]} c6 {[%emt 0:00:04]} 2. d4 {[%emt 0:00:05]} d5 {[%emt 0:00:04]} 3. exd5 {[%emt 0:00:06]} cxd5 {[%emt 0:00:04]} 4. Bd3 {[%emt 0:00:07]} Nf6 {[%emt 0:00:10]} 5. Bf4 {[%emt 0:00:45]} Qb6 {[%emt 0:02:15]} 6. Nc3 {[%emt 0:06:33]} Nc6 {[%emt 0:04:56]} 7. Nb5 {[%emt 0:09:43]} e5 {[%emt 0:05:18]} 8. dxe5 {[%emt 0:04:47]} Ng4 {[%emt 0:04:43]} 9. Qe2 {[%emt 0:04:17]} Bc5 {[%emt 0:08:11]} 10. Nd6+ {[%emt 0:04:15]} Kf8 {[%emt 0:01:08]} 11. Nxc8 {[%emt 0:12:21]} Qxb2 {[%emt 0:00:35]} 12. Rc1 {[%emt 0:02:16]} Nxf2 {[%emt 0:01:17]} 13. Nd6 {[%emt 0:09:13]} Nxh1 {[%emt 0:03:00]} 14. Qh5 {[%emt 0:17:54]} Bxd6 {[%emt 0:29:05]} 15. exd6 {[%emt 0:01:17]} Qb4+ {[%emt 0:19:22]} 16. Bd2 {[%emt 0:00:35]} Qxd6 {[%emt 0:01:17]} 17. Ne2 {[%emt 0:01:58]} Re8 {[%emt 0:01:43]} 18. Kf1 {[%emt 0:04:04]} Qc5 {[%emt 0:03:26]} 19. Qf3 {[%emt 0:03:00]} Re6 {[%emt 0:02:47]} 20. g3 {[%emt 0:02:49]} Rf6 {[%emt 0:00:49]} 21. Nf4 {[%emt 0:00:19]} g5 {[%emt 0:01:35]} 22. Qxh1 {[%emt 0:01:09]} gxf4 {[%emt 0:02:36]} 23. gxf4 {[%emt 0:01:36]} Ne5 {[%emt 0:00:48]} 24. Rb1 {[%emt 0:04:34]} Nxd3 {[%emt 0:02:47]} 25. cxd3 {[%emt 0:00:21]} Qc2 {[%emt 0:00:24]} 26. Bb4+ {[%emt 0:01:47]} Kg8 {[%emt 0:00:29]} 27. Qg2+ {[%emt 0:01:15]} Rg6 {[%emt 0:00:06]} 28. Qxc2 {[%emt 0:00:16]} 1-0

[Event "German Championship Women 2022"]
[Site "Magdeburg"]
[Date "2022.08.16"]
[Round "4.13"]
[White "Spiel, Marianne"]
[Black "Heil, Marina"]
[Result "1/2-1/2"]
[ECO "B00"]
[WhiteElo "1893"]
[BlackElo "1926"]
[Annotator "NA RC"]
[PlyCount "92"]
[EventDate "2022.08.14"]
[EventType "swiss"]
[EventCountry "GER"]
[SourceTitle "playchess.com"]
[Source "ChessBase"]
[SourceQuality "1"]
[TimeControl "40/5400+30:1800+30"]

1. e4 {[%emt 0:00:02]} d6 {[%emt 0:00:07]} 2. d4 {[%emt 0:00:06]} Nf6 {[%emt 0:00:06]} 3. Bd3 {[%emt 0:00:53]} e5 {[%emt 0:00:22]} 4. Nf3 {[%emt 0:01:22]} Nbd7 {[%emt 0:00:23]} 5. c3 {[%emt 0:01:13]} c6 {[%emt 0:00:34]} 6. O-O {[%emt 0:02:29]} Be7 {[%emt 0:00:41]} 7. Bg5 {[%emt 0:06:21]} h6 {[%emt 0:02:07]} 8. Bh4 {[%emt 0:04:19]} Qc7 {[%emt 0:08:46]} 9. Nbd2 {[%emt 0:02:03]} g5 {[%emt 0:06:51]} 10. Bg3 {[%emt 0:01:15]} Nh5 {[%emt 0:03:44]} 11. Nc4 {[%emt 0:20:57]} Nf4 {[%emt 0:12:39]} 12. Bc2 {[%emt 0:06:07]} h5 {[%emt 0:05:09]} 13. Ne3 {[%emt 0:03:15]} g4 {[%emt 0:17:20]} 14. Nh4 {[%emt 0:02:54]} Ng6 {[%emt 0:01:17]} 15. Nxg6 {[%emt 0:05:09]} fxg6 {[%emt 0:00:12]} 16. f4 {[%emt 0:01:20]} exf4 {[%emt 0:03:23]} 17. Bxf4 {[%emt 0:05:24]} Nf8 {[%emt 0:00:35]} 18. e5 {[%emt 0:04:02]} d5 {[%emt 0:00:36]} 19. Qb1 {[%emt 0:04:24]} g5 {[%emt 0:02:50]} 20. Bg6+ {[%emt 0:01:42]} Kd8 {[%emt 0:00:34]} 21. Bg3 {[%emt 0:00:17]} Be6 {[%emt 0:01:14]} 22. Bf5 {[%emt 0:02:45]} Qd7 {[%emt 0:01:36]} 23. Bxe6 {[%emt 0:00:26]} Nxe6 {[%emt 0:00:48]} 24. Rf7 {[%emt 0:01:34]} h4 {[%emt 0:01:26]} 25. Be1 {[%emt 0:01:27]} Rf8 {[%emt 0:02:23]} 26. Rxf8+ {[%emt 0:01:22]} Nxf8 {[%emt 0:00:19]} 27. Nf5 {[%emt 0:01:52]} Ne6 {[%emt 0:01:23]} 28. Nxe7 {[%emt 0:01:16]} Qxe7 {[%emt 0:00:21]} 29. Qf5 {[%emt 0:00:41]} Kd7 {[%emt 0:00:48]} 30. Qxg4 {[%emt 0:01:54]} Rf8 {[%emt 0:00:18]} 31. Bd2 {[%emt 0:00:42]} Qf7 {[%emt 0:00:15]} 32. Be3 {[%emt 0:02:11]} Qg6 {[%emt 0:00:22]} 33. Qe2 {[%emt 0:02:03]} Qe4 {[%emt 0:01:27]} 34. Re1 {[%emt 0:00:25]} Qg6 {[%emt 0:02:12]} 35. Bc1 {[%emt 0:02:10]} g4 {[%emt 0:01:37]} 36. Rf1 {[%emt 0:04:41]} Rg8 {[%emt 0:03:22]} 37. Qf2 {[%emt 0:02:11]} Rf8 {[%emt 0:02:13]} 38. Qe1 {[%emt 0:02:43]} Rh8 {[%emt 0:00:16]} 39. Rf6 {[%emt 0:01:03]} Qc2 {[%emt 0:02:41]} 40. Qf1 {[%emt 0:01:38]} a6 {[%emt 0:12:58]} 41. Rf2 {[%emt 0:02:47]} Qe4 {[%emt 0:00:56]} 42. Re2 {[%emt 0:05:22]} Qh7 {[%emt 0:01:49]} 43. Rf2 {[%emt 0:05:18]} Qe4 {[%emt 0:00:13]} 44. Rf7+ {[%emt 0:04:41]} Kc8 {[%emt 0:00:19]} 45. Rf6 {[%emt 0:02:00]} Kd7 {[%emt 0:00:52]} 46. Rf7+ {[%emt 0:04:43]} Kc8 {[%emt 0:00:13]} 1/2-1/2

[Event "German Championship Women 2022"]
[Site "Magdeburg"]
[Date "2022.08.17"]
[Round "5.1"]
[White "Schulze, Lara"]
[Black "Kunze, Kerstin"]
[Result "1-0"]
[ECO "B06"]
[WhiteElo "2292"]
[BlackElo "2020"]
[Annotator "NA RC"]
[PlyCount "59"]
[EventDate "2022.08.14"]
[EventType "swiss"]
[EventCountry "GER"]
[SourceTitle "playchess.com"]
[Source "ChessBase"]
[SourceQuality "1"]
[TimeControl "40/5400+30:1800+30"]

1. e4 {[%emt 0:00:02]} g6 {[%emt 0:00:16]} 2. d4 {[%emt 0:00:09]} Bg7 {[%emt 0:00:05]} 3. Nf3 {[%emt 0:00:08]} d6 {[%emt 0:00:39]} 4. Be3 {[%emt 0:01:04]} c6 {[%emt 0:06:34]} 5. Bd3 {[%emt 0:03:53]} Bg4 {[%emt 0:13:25]} 6. Nbd2 {[%emt 0:05:00]} Qc7 {[%emt 0:07:15]} 7. h3 {[%emt 0:04:41]} Bxf3 {[%emt 0:05:57]} 8. Nxf3 {[%emt 0:00:35]} Nd7 {[%emt 0:00:43]} 9. O-O {[%emt 0:02:45]} Ngf6 {[%emt 0:03:40]} 10. c3 {[%emt 0:04:53]} e5 {[%emt 0:03:26]} 11. dxe5 {[%emt 0:06:00]} dxe5 {[%emt 0:00:07]} 12. Qc2 {[%emt 0:01:17]} O-O {[%emt 0:09:30]} 13. a4 {[%emt 0:02:30]} c5 {[%emt 0:11:12]} 14. Bc4 {[%emt 0:09:57]} Nb6 {[%emt 0:06:09]} 15. Be2 {[%emt 0:08:57]} Nh5 {[%emt 0:03:07]} 16. Rfd1 {[%emt 0:04:03]} Nf4 {[%emt 0:01:04]} 17. Bf1 {[%emt 0:04:32]} a5 {[%emt 0:08:17]} 18. Nd2 {[%emt 0:02:33]} Qe7 {[%emt 0:04:39]} 19. Qb3 {[%emt 0:02:36]} Qc7 {[%emt 0:02:32]} 20. Qb5 {[%emt 0:04:15]} Rfc8 {[%emt 0:07:35]} 21. Nc4 {[%emt 0:04:22]} Nxc4 {[%emt 0:00:33]} 22. Bxc4 {[%emt 0:01:11]} Qe7 {[%emt 0:00:41]} 23. Rd7 {[%emt 0:10:25]} Qg5 {[%emt 0:00:05]} 24. Bxf4 {[%emt 0:00:09]} exf4 {[%emt 0:00:09]} 25. Rxf7 {[%emt 0:01:39]} Kh8 {[%emt 0:00:03]} 26. Rd1 {[%emt 0:00:52]} Rf8 {[%emt 0:00:57]} 27. Rxf8+ {[%emt 0:05:15]} Rxf8 {[%emt 0:00:20]} 28. f3 {[%emt 0:00:12]} Rd8 {[%emt 0:01:09]} 29. Rd5 {[%emt 0:01:17]} Qh4 {[%emt 0:00:23]} 30. Kf1 {[%emt 0:01:36]} 1-0

[Event "German Championship Women 2022"]
[Site "Magdeburg"]
[Date "2022.08.17"]
[Round "5.2"]
[White "Falke, Ornella"]
[Black "Voicu-Jagodzinsky, Carmen"]
[Result "1-0"]
[ECO "B29"]
[WhiteElo "1912"]
[BlackElo "2258"]
[Annotator "NA RC"]
[PlyCount "81"]
[EventDate "2022.08.14"]
[EventType "swiss"]
[EventCountry "GER"]
[SourceTitle "playchess.com"]
[Source "ChessBase"]
[SourceQuality "1"]
[TimeControl "40/5400+30:1800+30"]

1. e4 {[%emt 0:00:02]} c5 {[%emt 0:00:04]} 2. Nf3 {[%emt 0:00:10]} Nf6 {[%emt 0:00:05]} 3. e5 {[%emt 0:00:36]} Nd5 {[%emt 0:00:04]} 4. Nc3 {[%emt 0:00:14]} Nxc3 {[%emt 0:00:45]} 5. dxc3 {[%emt 0:00:06]} Nc6 {[%emt 0:01:12]} 6. Bf4 {[%emt 0:05:21]} e6 {[%emt 0:03:03]} 7. Qd3 {[%emt 0:17:37]} Qc7 {[%emt 0:02:00]} 8. h4 {[%emt 0:10:11]} b6 {[%emt 0:01:40]} 9. O-O-O {[%emt 0:02:14]} Bb7 {[%emt 0:01:02]} 10. Kb1 {[%emt 0:09:28]} h6 {[%emt 0:00:22]} 11. g4 {[%emt 0:05:24]} O-O-O {[%emt 0:01:09]} 12. Bg3 {[%emt 0:02:16]} Na5 {[%emt 0:11:46]} 13. Be2 {[%emt 0:02:59]} c4 {[%emt 0:02:57]} 14. Qd2 {[%emt 0:00:28]} Bd5 {[%emt 0:02:04]} 15. Rhe1 {[%emt 0:01:31]} d6 {[%emt 0:10:42]} 16. Qe3 {[%emt 0:06:17]} Nc6 {[%emt 0:05:46]} 17. Bf1 {[%emt 0:10:58]} dxe5 {[%emt 0:12:07]} 18. Nxe5 {[%emt 0:00:15]} Nxe5 {[%emt 0:00:48]} 19. Bxe5 {[%emt 0:00:19]} Qc6 {[%emt 0:00:59]} 20. f4 {[%emt 0:03:40]} f6 {[%emt 0:03:28]} 21. Bd4 {[%emt 0:00:05]} Be7 {[%emt 0:00:52]} 22. Bh3 {[%emt 0:02:42]} Rd6 {[%emt 0:01:42]} 23. g5 {[%emt 0:02:13]} hxg5 {[%emt 0:00:33]} 24. hxg5 {[%emt 0:00:32]} Kb7 {[%emt 0:02:25]} 25. Rd2 {[%emt 0:01:59]} a5 {[%emt 0:07:46]} 26. Qg3 {[%emt 0:01:33]} Ka6 {[%emt 0:05:18]} 27. a3 {[%emt 0:01:39]} Qb7 {[%emt 0:04:15]} 28. Rde2 {[%emt 0:00:21]} Qd7 {[%emt 0:03:13]} 29. Bg4 {[%emt 0:01:02]} Re8 {[%emt 0:00:31]} 30. Bh5 {[%emt 0:03:58]} Rf8 {[%emt 0:03:19]} 31. Bg4 {[%emt 0:00:40]} Rc6 {[%emt 0:01:05]} 32. f5 {[%emt 0:00:59]} e5 {[%emt 0:05:14]} 33. Bxe5 {[%emt 0:00:11]} Bxa3 {[%emt 0:00:25]} 34. gxf6 {[%emt 0:00:42]} gxf6 {[%emt 0:00:28]} 35. bxa3 {[%emt 0:02:45]} fxe5 {[%emt 0:00:06]} 36. Rxe5 {[%emt 0:00:26]} Rc5 {[%emt 0:00:22]} 37. Qf2 {[%emt 0:03:30]} Rg8 {[%emt 0:02:45]} 38. Bf3 {[%emt 0:00:38]} Bxf3 {[%emt 0:03:11]} 39. Rxc5 {[%emt 0:00:11]} Bb7 {[%emt 0:03:02]} 40. Re6 {[%emt 0:01:23]} Rg2 {[%emt 0:00:37]} 41. Rxa5+ {[%emt 0:31:00]} 1-0

[Event "German Championship Women 2022"]
[Site "Magdeburg"]
[Date "2022.08.17"]
[Round "5.3"]
[White "Fock, Sana"]
[Black "Birkholz, Olga"]
[Result "0-1"]
[ECO "C00"]
[WhiteElo "1807"]
[BlackElo "2002"]
[Annotator "NA RC"]
[PlyCount "108"]
[EventDate "2022.08.14"]
[EventType "swiss"]
[EventCountry "GER"]
[SourceTitle "playchess.com"]
[Source "ChessBase"]
[SourceQuality "1"]
[TimeControl "40/5400+30:1800+30"]

1. e4 {[%emt 0:00:02]} e6 {[%emt 0:00:07]} 2. d4 {[%emt 0:00:13]} c5 {[%emt 0:00:05]} 3. c3 {[%emt 0:02:29]} Qc7 {[%emt 0:03:37]} 4. Nf3 {[%emt 0:05:21]} b6 {[%emt 0:01:49]} 5. Bd3 {[%emt 0:07:32]} Ba6 {[%emt 0:08:41]} 6. O-O {[%emt 0:08:23]} Be7 {[%emt 0:02:01]} 7. Bxa6 {[%emt 0:05:43]} Nxa6 {[%emt 0:00:05]} 8. Qe2 {[%emt 0:03:18]} Qb7 {[%emt 0:06:25]} 9. d5 {[%emt 0:12:43]} Nc7 {[%emt 0:01:36]} 10. c4 {[%emt 0:02:17]} O-O-O {[%emt 0:02:27]} 11. Bf4 {[%emt 0:05:32]} d6 {[%emt 0:00:13]} 12. a4 {[%emt 0:02:32]} e5 {[%emt 0:06:49]} 13. Bd2 {[%emt 0:03:27]} a5 {[%emt 0:03:42]} 14. Ng5 {[%emt 0:05:20]} Bxg5 {[%emt 0:04:57]} 15. Qg4+ {[%emt 0:03:09]} Rd7 {[%emt 0:00:05]} 16. Qxg5 {[%emt 0:02:26]} f6 {[%emt 0:00:11]} 17. Qe3 {[%emt 0:01:55]} g5 {[%emt 0:01:32]} 18. Nc3 {[%emt 0:03:33]} h5 {[%emt 0:02:01]} 19. Ne2 {[%emt 0:02:11]} Ne8 {[%emt 0:06:39]} 20. f3 {[%emt 0:04:44]} Nh6 {[%emt 0:06:24]} 21. Qd3 {[%emt 0:07:05]} Ng7 {[%emt 0:06:22]} 22. Ra3 {[%emt 0:01:09]} h4 {[%emt 0:08:06]} 23. Rb3 {[%emt 0:00:31]} Qa6 {[%emt 0:01:03]} 24. Rb5 {[%emt 0:00:51]} Ne8 {[%emt 0:02:05]} 25. Qb3 {[%emt 0:02:20]} Rb7 {[%emt 0:00:26]} 26. Qd3 {[%emt 0:00:32]} Rg7 {[%emt 0:01:50]} 27. Qb3 {[%emt 0:01:22]} Rb7 {[%emt 0:00:06]} 28. Qd3 {[%emt 0:00:14]} Nc7 {[%emt 0:00:26]} 29. Rb3 {[%emt 0:00:41]} Kd7 {[%emt 0:02:38]} 30. Kh1 {[%emt 0:02:37]} Rbb8 {[%emt 0:00:27]} 31. Rc3 {[%emt 0:01:04]} Qc8 {[%emt 0:00:24]} 32. Rcc1 {[%emt 0:00:56]} Qe8 {[%emt 0:00:45]} 33. Rce1 {[%emt 0:01:10]} Qh5 {[%emt 0:00:57]} 34. Ng1 {[%emt 0:00:49]} Qg6 {[%emt 0:01:21]} 35. Ne2 {[%emt 0:00:55]} f5 {[%emt 0:00:55]} 36. Ng1 {[%emt 0:00:42]} Kc8 {[%emt 0:01:29]} 37. Re2 {[%emt 0:01:09]} Kb7 {[%emt 0:00:15]} 38. Ree1 {[%emt 0:00:29]} Ka7 {[%emt 0:00:12]} 39. Re2 {[%emt 0:00:49]} Rbf8 {[%emt 0:00:34]} 40. Ree1 {[%emt 0:00:45]} Rf6 {[%emt 0:06:44]} 41. Qe3 {[%emt 0:08:37]} f4 {[%emt 0:08:26]} 42. Qe2 {[%emt 0:05:48]} Rff8 {[%emt 0:08:11]} 43. Bc3 {[%emt 0:05:13]} g4 {[%emt 0:01:18]} 44. Qd2 {[%emt 0:02:54]} Rhg8 {[%emt 0:01:43]} 45. b3 {[%emt 0:07:18]} h3 {[%emt 0:02:52]} 46. fxg4 {[%emt 0:00:44]} hxg2+ {[%emt 0:00:14]} 47. Qxg2 {[%emt 0:00:13]} Nxg4 {[%emt 0:00:20]} 48. h3 {[%emt 0:00:40]} Qh6 {[%emt 0:01:47]} 49. Qf3 {[%emt 0:02:33]} Nf6 {[%emt 0:01:37]} 50. Bd2 {[%emt 0:01:07]} Qh4 {[%emt 0:01:33]} 51. Ne2 {[%emt 0:00:31]} Nxe4 {[%emt 0:00:39]} 52. Rd1 {[%emt 0:00:50]} Ng3+ {[%emt 0:00:22]} 53. Kh2 {[%emt 0:00:51]} Nxe2 {[%emt 0:02:22]} 54. Qxe2 {[%emt 0:00:08]} Rg3 {[%emt 0:00:07]} 0-1

[Event "German Championship Women 2022"]
[Site "Magdeburg"]
[Date "2022.08.17"]
[Round "5.4"]
[White "Bazzazi, Elnaz"]
[Black "Heil, Marina"]
[Result "1-0"]
[ECO "B23"]
[WhiteElo "1766"]
[BlackElo "1926"]
[Annotator "NA RC"]
[PlyCount "75"]
[EventDate "2022.08.14"]
[EventType "swiss"]
[EventCountry "GER"]
[SourceTitle "playchess.com"]
[Source "ChessBase"]
[SourceQuality "1"]
[TimeControl "40/5400+30:1800+30"]

1. e4 c5 2. Nc3 a6 3. g3 b5 4. Bg2 Bb7 5. d3 e6 6. Nh3 Nf6 7. O-O b4 8. Nb1 d6 9. f4 Qc7 10. Be3 Be7 11. Nd2 O-O 12. g4 d5 13. g5 Nfd7 14. f5 Bd6 15. fxe6 fxe6 16. Qg4 Bxh2+ 17. Kh1 Qd6 18. Rxf8+ Nxf8 19. Rf1 Nbd7 20. Nf4 Bxf4 21. Bxf4 Qe7 22. exd5 exd5 23. Nc4 Qe6 24. Qg3 Ng6 25. Re1 Qf7 26. Bc7 Ne7 27. Nd6 Nf5 28. Nxf5 Qxf5 29. Bh3 d4+ 30. Kg1 Qg6 31. Be6+ Kh8 32. Bxd7 Rf8 33. Bh3 Rf3 34. Qe5 Bc6 35. Qe7 h5 36. Re6 Qf7 37. Qxf7 Rxf7 38. Rxc6 1-0

[Event "German Championship Women 2022"]
[Site "Magdeburg"]
[Date "2022.08.17"]
[Round "5.5"]
[White "Muetsch, Annmarie"]
[Black "Just, Anita"]
[Result "1-0"]
[ECO "A04"]
[WhiteElo "2249"]
[BlackElo "1905"]
[Annotator "NA RC"]
[PlyCount "103"]
[EventDate "2022.08.14"]
[EventType "swiss"]
[EventCountry "GER"]
[SourceTitle "playchess.com"]
[Source "ChessBase"]
[SourceQuality "1"]
[TimeControl "40/5400+30:1800+30"]

1. Nf3 {[%emt 0:00:27]} e6 {[%emt 0:01:09]} 2. g3 {[%emt 0:00:15]} f5 {[%emt 0:00:37]} 3. Bg2 {[%emt 0:00:19]} Nf6 {[%emt 0:00:10]} 4. O-O {[%emt 0:00:14]} Be7 {[%emt 0:00:18]} 5. b3 {[%emt 0:01:01]} O-O {[%emt 0:00:27]} 6. Bb2 {[%emt 0:00:15]} d6 {[%emt 0:00:33]} 7. d4 {[%emt 0:01:52]} Qe8 {[%emt 0:00:57]} 8. Nbd2 {[%emt 0:00:50]} Ne4 {[%emt 0:02:49]} 9. c4 {[%emt 0:03:10]} Nd7 {[%emt 0:02:23]} 10. Qc2 {[%emt 0:11:38]} Ndf6 {[%emt 0:06:40]} 11. a4 {[%emt 0:17:15]} a5 {[%emt 0:03:03]} 12. Ba3 {[%emt 0:01:36]} Bd7 {[%emt 0:11:36]} 13. Rac1 {[%emt 0:09:11]} c6 {[%emt 0:14:41]} 14. d5 {[%emt 0:11:03]} cxd5 {[%emt 0:12:21]} 15. cxd5 {[%emt 0:00:14]} exd5 {[%emt 0:06:13]} 16. Qd3 {[%emt 0:07:24]} Nc5 {[%emt 0:07:26]} 17. Qb1 {[%emt 0:03:24]} Nfe4 {[%emt 0:03:37]} 18. Bb2 {[%emt 0:03:05]} Bf6 {[%emt 0:05:25]} 19. Bxf6 {[%emt 0:01:10]} Rxf6 {[%emt 0:00:31]} 20. Rfd1 {[%emt 0:02:34]} f4 {[%emt 0:02:06]} 21. Nf1 {[%emt 0:02:07]} Qh5 {[%emt 0:03:07]} 22. gxf4 {[%emt 0:04:49]} Rxf4 {[%emt 0:01:24]} 23. Ng3 {[%emt 0:00:15]} Nxg3 {[%emt 0:01:17]} 24. hxg3 {[%emt 0:01:35]} Rf6 {[%emt 0:00:12]} 25. Rd4 {[%emt 0:03:53]} Bf5 {[%emt 0:02:26]} 26. Rxd5 {[%emt 0:06:50]} Qf7 {[%emt 0:03:02]} 27. Ng5 {[%emt 0:00:18]} Qg6 {[%emt 0:01:36]} 28. e4 {[%emt 0:00:07]} Qxg5 {[%emt 0:02:56]} 29. Rxf5 {[%emt 0:00:30]} Rxf5 {[%emt 0:00:23]} 30. exf5 {[%emt 0:00:04]} Rf8 {[%emt 0:00:33]} 31. Bd5+ {[%emt 0:01:58]} Kh8 {[%emt 0:00:04]} 32. Re1 {[%emt 0:01:01]} Qd2 {[%emt 0:01:17]} 33. Bc4 {[%emt 0:02:18]} Qg5 {[%emt 0:01:54]} 34. Rd1 {[%emt 0:01:09]} Qf6 {[%emt 0:01:08]} 35. Qc2 {[%emt 0:00:39]} h6 {[%emt 0:01:28]} 36. Rd5 {[%emt 0:00:27]} Qe7 {[%emt 0:00:39]} 37. Qd2 {[%emt 0:00:56]} Rf6 {[%emt 0:00:43]} 38. Qxa5 {[%emt 0:00:36]} Qf8 {[%emt 0:00:57]} 39. Qc7 {[%emt 0:01:04]} Rxf5 {[%emt 0:00:52]} 40. Rxf5 {[%emt 0:00:48]} Qxf5 {[%emt 0:00:07]} 41. Qd8+ {[%emt 0:03:36]} Kh7 {[%emt 0:03:25]} 42. Bg8+ {[%emt 0:01:19]} Kg6 {[%emt 0:00:10]} 43. Qxd6+ {[%emt 0:00:08]} Kh5 {[%emt 0:08:47]} 44. Qd4 {[%emt 0:09:51]} Ne4 {[%emt 0:05:49]} 45. Qd5 {[%emt 0:04:59]} Qxd5 {[%emt 0:04:08]} 46. Bxd5 {[%emt 0:00:06]} Nc5 {[%emt 0:00:07]} 47. a5 {[%emt 0:00:14]} Kg5 {[%emt 0:01:11]} 48. Bxb7 {[%emt 0:00:46]} Nxb3 {[%emt 0:05:38]} 49. a6 {[%emt 0:00:07]} Nc5 {[%emt 0:00:26]} 50. a7 {[%emt 0:00:06]} Nxb7 {[%emt 0:00:06]} 51. a8=Q {[%emt 0:00:06]} Nd6 {[%emt 0:00:07]} 52. Qd8+ {[%emt 0:00:10]} 1-0